Cogmind - Beta 11 X6 @@@ ROGUE MODE // 2021.07.19 @ 22:49:23 Player: Amy! Result: Destroyed by Tiamat Bomb Trap Performance ------------- Evolutions (5) 2500 Regions Visited (9) 1800 Robots Destroyed (0) 0 Value Destroyed (0) 0 Prototype IDs (23) 460 Alien Tech Used (0) 0 Bonus (2290) 2290 TOTAL SCORE: 7050 Bonus ------- Pacifist 1787 Follower Combat Kills 203 Aligned with FarCom 300 Cogmind --------- Core Integrity 0/1000 Matter 300/300 Energy 99/100 System Corruption 0% Temperature Cool (0) Movement Core (50) Location -5/Factory Parts ------- > --- POWER (2) -------- (None) > --- PROPULSION (6) --- (None) > --- UTILITY (7) ------ Enhanced Optical Array Advanced Signal Interpreter > --- WEAPON (2) ------- (None) > --- INVENTORY (5) ---- Ion Engine Light Ion Engine Light Nuclear Core Small Storage Unit Deploy-a-Sentry Peak State ------------ > --- POWER ------------ Light Nuclear Core Light Nuclear Core > --- PROPULSION ------- VTOL Module VTOL Module VTOL Module VTOL Module > --- UTILITY ---------- Enhanced Optical Array Advanced Signal Interpreter Improved Transmission Jammer > --- WEAPON ----------- (None) > --- INVENTORY -------- Ion Engine Light Ion Engine Small Storage Unit Deploy-a-Sentry [Rating: 30] Favorites ----------- Power Light Nuclear Core Engine Light Ion Engine Power Core Light Nuclear Core Propulsion VTOL Module Flight Unit VTOL Module Utility Enhanced Optical Array Device Improved Transmission Jammer Processor Enhanced Optical Array Weapon None Build | -11 -10 -10 -10 -9 -8 -8 -7 -6 -5 ------- Run | Scr Mat Min Exi Min Mat Sto Fac Fac Fac Slots Evolved 10 | . . . . . 4 . 2 2 2 Power 1 | . . . . . . . 1 . . Propulsion 4 | . . . . . 2 . . 1 1 Utility 5 | . . . . . 2 . 1 1 1 Weapon . | . . . . . . . . . . Parts Attached 16 | . 2 . . . . 3 . 10 1 Power 5 | . 1 . . . . 1 . 3 . Engine 3 | . 1 . . . . 1 . 1 . Core 2 | . . . . . . . . 2 . Reactor . | . . . . . . . . . . Propulsion 8 | . 1 . . . . 2 . 4 1 Treads . | . . . . . . . . . . Leg . | . . . . . . . . . . Wheel . | . . . . . . . . . . Hover . | . . . . . . . . . . Flight 8 | . 1 . . . . 2 . 4 1 Utility 3 | . . . . . . . . 3 . Device 1 | . . . . . . . . 1 . Storage . | . . . . . . . . . . Processor 2 | . . . . . . . . 2 . Hackware . | . . . . . . . . . . Protection . | . . . . . . . . . . Artifact . | . . . . . . . . . . Weapon . | . . . . . . . . . . Energy Gun . | . . . . . . . . . . Energy Cannon . | . . . . . . . . . . Ballistic Gun . | . . . . . . . . . . Ballistic Cannon . | . . . . . . . . . . Launcher . | . . . . . . . . . . Special Weapon . | . . . . . . . . . . Impact Weapon . | . . . . . . . . . . Slashing Weapon . | . . . . . . . . . . Piercing Weapon . | . . . . . . . . . . Special Melee Weapon . | . . . . . . . . . . Unidentified Prototypes . | . . . . . . . . . . Parts Lost 11 | . 1 . . 1 . . . 2 7 Power 2 | . . . . 1 . . . . 1 Propulsion 8 | . 1 . . . . . . 2 5 Utility 1 | . . . . . . . . . 1 Weapon . | . . . . . . . . . . Highest Loss Streak 5 | . 1 . . 1 . . . 1 5 Average Slot Usage (%) 19 | . 7 14 14 14 . 1 23 26 30 Engine 4 | . 7 14 14 14 . . 7 1 . Core 2 | . . . . . . . . 2 5 Flight 5 | . . . . . . 1 15 10 9 Device 1 | . . . . . . . . 4 3 Processor 4 | . . . . . . . . 6 11 Naked Turns 183 | . 13 . . 9 17 144 . . . Heaviest Build 11 | . 3 3 3 3 . 5 5 11 11 Greatest Support 16 | 3 4 3 3 3 3 8 8 16 16 Greatest Overweight (x) . | . . . . . . . . . . Average Overweight (x) . | . . . . . . . . . . Largest Inventory Capacity 5 | 5 5 5 5 5 5 5 5 5 5 Average Capacity 5 | 5 5 5 5 5 5 5 5 5 5 Most Carried 5 | 3 3 2 5 5 5 5 4 5 5 Average Carried 4 | 2 2 2 3 5 5 4 4 4 4 Final Capacity 5 | 5 5 5 5 5 5 5 5 5 5 Final Carried 5 | 3 2 2 5 5 5 4 4 4 5 Class Distribution -------------------- 75% | Mutant 24% | Scavenger-Sprinter Dominant Class ---------------- Mutant | -10/Materials Mutant | -10/Mines Mutant | -10/Exiles Mutant | -9/Mines Mutant | -8/Materials Mutant | -8/Storage Mutant | -7/Factory Mutant | -6/Factory Scavenger-Sprinter | -5/Factory Resources | -11 -10 -10 -10 -9 -8 -8 -7 -6 -5 ----------- Run | Scr Mat Min Exi Min Mat Sto Fac Fac Fac Matter Collected 301 | 200 . 10 . . . 30 . 61 . Remotely . | . . . . . . . . . . Salvage Created . | . . . . . . . . . . Parts . | . . . . . . . . . . Haulers Intercepted . | . . . . . . . . . . Recyclers Shooed . | . . . . . . . . . . Parts Field Recycled . | . . . . . . . . . . Retrieved Matter . | . . . . . . . . . . Parts Self-Destructed . | . . . . . . . . . . Prevented . | . . . . . . . . . . Kills | -11 -10 -10 -10 -9 -8 -8 -7 -6 -5 ------- Run | Scr Mat Min Exi Min Mat Sto Fac Fac Fac Combat Hostiles Destroyed . | . . . . . . . . . . Classes Destroyed . | . . . . . . . . . . Best Kill Streak . | . . . . . . . . . . Combat Bots Only . | . . . . . . . . . . Max Kills in Single Turn . | . . . . . . . . . . Gunslinging . | . . . . . . . . . . Exploded . | . . . . . . . . . . Melee . | . . . . . . . . . . Uniques/NPCs Destroyed . | . . . . . . . . . . Combat | -11 -10 -10 -10 -9 -8 -8 -7 -6 -5 -------- Run | Scr Mat Min Exi Min Mat Sto Fac Fac Fac Damage Taken 2301 | . 141 . . 30 72 383 . 423 1252 Core 1865 | . 76 . . 15 72 383 . 313 1006 Absorbed by Shields . | . . . . . . . . . . Core Remaining (%) 68 | 100 . . . 63 . 17 100 63 . Volleys Fired . | . . . . . . . . . . Largest . | . . . . . . . . . . Hottest . | . . . . . . . . . . Shots Fired . | . . . . . . . . . . Gun . | . . . . . . . . . . Cannon . | . . . . . . . . . . Launcher . | . . . . . . . . . . Special . | . . . . . . . . . . Kinetic . | . . . . . . . . . . Thermal . | . . . . . . . . . . Explosive . | . . . . . . . . . . Electromagnetic . | . . . . . . . . . . Robot Hit Streak . | . . . . . . . . . . Robot Miss Streak . | . . . . . . . . . . Penetration Max . | . . . . . . . . . . Secondary Targets . | . . . . . . . . . . Shots Hit Robots . | . . . . . . . . . . Core Hits 1 | . . . . . . . . . 1 Critical Kills . | . . . . . . . . . . Critical Parts Destroyed . | . . . . . . . . . . Critical Strikes . | . . . . . . . . . . Melee Attacks . | . . . . . . . . . . Impact . | . . . . . . . . . . Slashing . | . . . . . . . . . . Piercing . | . . . . . . . . . . Sneak Attacks . | . . . . . . . . . . Combat Hostiles . | . . . . . . . . . . Follow-up Attacks . | . . . . . . . . . . Damage Inflicted 46 | . 2 . . . . . . . 44 Guns . | . . . . . . . . . . Cannons . | . . . . . . . . . . Explosions . | . . . . . . . . . . Melee . | . . . . . . . . . . Ramming 46 | . 2 . . . . . . . 44 Kinetic . | . . . . . . . . . . Thermal . | . . . . . . . . . . Explosive . | . . . . . . . . . . Electromagnetic . | . . . . . . . . . . Impact . | . . . . . . . . . . Slashing . | . . . . . . . . . . Piercing . | . . . . . . . . . . Highest Corruption . | . . . . . . . . . . Average Corruption . | . . . . . . . . . . Corruption Purged . | . . . . . . . . . . Overload Shots . | . . . . . . . . . . Overflow Damage . | . . . . . . . . . . Projectiles . | . . . . . . . . . . Explosions . | . . . . . . . . . . Melee . | . . . . . . . . . . Knockbacks . | . . . . . . . . . . Impact . | . . . . . . . . . . Kinetic . | . . . . . . . . . . Secondary . | . . . . . . . . . . Self-Inflicted Damage 20 | . 1 . . . . . . . 19 Shots . | . . . . . . . . . . Rammed 10 | . 1 . . . . . . . 9 Targets Rammed 10 | . 1 . . . . . . . 9 Kicked . | . . . . . . . . . . Crushed . | . . . . . . . . . . Highest Temperature 1 | . . . . . . . . 1 . Average Temperature 1 | . . . . . . . . 1 . Received Heat Transfer 255 | . 39 . . 9 45 54 . 36 72 Siege Activations . | . . . . . . . . . . Robots Corrupted . | . . . . . . . . . . Combat Hostiles . | . . . . . . . . . . Parts Fried . | . . . . . . . . . . Impact Corruptions . | . . . . . . . . . . Robots Melted . | . . . . . . . . . . Combat Hostiles . | . . . . . . . . . . Parts Melted . | . . . . . . . . . . Heat Transferred . | . . . . . . . . . . Parts Sabotaged . | . . . . . . . . . . Parts Stolen . | . . . . . . . . . . Parts Stripped . | . . . . . . . . . . Power Chain Reactions . | . . . . . . . . . . Missiles Intercepted . | . . . . . . . . . . Alert | -11 -10 -10 -10 -9 -8 -8 -7 -6 -5 ------- Run | Scr Mat Min Exi Min Mat Sto Fac Fac Fac Peak Influence 287 | . 30 7 . 15 6 278 126 287 265 Initial 126 | . . 7 . . 1 1 126 61 66 Average 93 | . 13 7 . 5 4 76 126 122 136 Maximum Alert Level 1 | . . . . . . 1 . 1 1 Low Security (%) 91 | 100 100 100 . 100 100 86 100 85 93 Level 1 8 | . . . . . . 13 . 14 6 Level 2 . | . . . . . . . . . . Level 3 . | . . . . . . . . . . Level 4 . | . . . . . . . . . . Level 5 . | . . . . . . . . . . High Security . | . . . . . . . . . . Max Security . | . . . . . . . . . . Squads Dispatched 3 | . 1 . . . 1 . . . 1 Investigation 1 | . . . . . 1 . . . . Extermination . | . . . . . . . . . . Reinforcement 2 | . 1 . . . . . . . 1 Assault . | . . . . . . . . . . Garrison . | . . . . . . . . . . Intercept . | . . . . . . . . . . Construction Impeded . | . . . . . . . . . . Haulers Reinforced . | . . . . . . . . . . Active Scanning Responses . | . . . . . . . . . . Cargo Convoy Interrupts . | . . . . . . . . . . Stealth | -11 -10 -10 -10 -9 -8 -8 -7 -6 -5 --------- Run | Scr Mat Min Exi Min Mat Sto Fac Fac Fac Distress Signals 2 | . 1 . . . . . . . 1 Communications Jammed . | . . . . . . . . . . Distress Signals . | . . . . . . . . . . Times Spotted 55 | . 7 . . 2 3 12 . 11 20 Peak Tracking Total 10 | . 7 . . 2 3 10 . 6 10 Tactical Retreats 8 | . . . . . . 2 . 1 5 Traps | -11 -10 -10 -10 -9 -8 -8 -7 -6 -5 ------- Run | Scr Mat Min Exi Min Mat Sto Fac Fac Fac Traps Triggered 3 | . . . . . . . . 1 2 Indirectly . | . . . . . . . . . . Trap Hack Attempts . | . . . . . . . . . . Triggered . | . . . . . . . . . . Disarmed . | . . . . . . . . . . Reprogrammed . | . . . . . . . . . . Reused . | . . . . . . . . . . Traps Extracted . | . . . . . . . . . . Installed . | . . . . . . . . . . Triggered . | . . . . . . . . . . Machines | -11 -10 -10 -10 -9 -8 -8 -7 -6 -5 ---------- Run | Scr Mat Min Exi Min Mat Sto Fac Fac Fac Machines Disabled . | . . . . . . . . . . Max in Single Turn . | . . . . . . . . . . Garrison Access 2 | . . . . . . . . 2 . Machines Sabotaged . | . . . . . . . . . . Garrisons Compromised . | . . . . . . . . . . Overloaded Fab Kills . | . . . . . . . . . . Fab Network Shutdowns . | . . . . . . . . . . Hacking | -11 -10 -10 -10 -9 -8 -8 -7 -6 -5 --------- Run | Scr Mat Min Exi Min Mat Sto Fac Fac Fac Machines Accessed 11 | . . . 1 1 1 1 . 6 1 Terminals 7 | . . . . . 1 1 . 4 1 Fabricators . | . . . . . . . . . . Repair Stations . | . . . . . . . . . . Recycling Units . | . . . . . . . . . . Scanalyzers . | . . . . . . . . . . Garrison Access 2 | . . . . . . . . 2 . Total Hacks 23 | . . . 1 1 5 1 . 12 3 Successful 14 | . . . 1 1 1 1 . 9 1 Failed 9 | . . . . . 4 . . 3 2 Catastrophic 2 | . . . . . 2 . . . . Database Lockouts . | . . . . . . . . . . Manual 17 | . . . 1 . 5 . . 8 3 Terminals 19 | . . . . . 5 1 . 10 3 Fabricators . | . . . . . . . . . . Repair Stations . | . . . . . . . . . . Recycling Units . | . . . . . . . . . . Scanalyzers . | . . . . . . . . . . Garrison Access 2 | . . . . . . . . 2 . Terminal Hacks 5 | . . . 1 1 . 1 . 2 . Open Door 2 | . . . . 1 . 1 . . . Alert Level 1 | . . . . . . . . 1 . Unreport Threat 1 | . . . . . . . . 1 . EX-Prototype ID Bank 1 | . . . 1 . . . . . . Fabricator Hacks . | . . . . . . . . . . Repair Station Hacks . | . . . . . . . . . . Recycling Unit Hacks . | . . . . . . . . . . Scanalyzer . | . . . . . . . . . . Garrison Access Hacks 2 | . . . . . . . . 2 . Seal Access 2 | . . . . . . . . 2 . Unauthorized Hacks 7 | . . . . . 1 . . 5 1 Terminals 7 | . . . . . 1 . . 5 1 Assimilate 1 | . . . . . . . . 1 . Botnet 6 | . . . . . 1 . . 4 1 Fabricators . | . . . . . . . . . . Repair Stations . | . . . . . . . . . . Recycling Units . | . . . . . . . . . . Scanalyzers . | . . . . . . . . . . Garrison Access . | . . . . . . . . . . Data Cores Recovered . | . . . . . . . . . . Used . | . . . . . . . . . . Hacking Detections 6 | . . . . . 1 . . 4 1 Full Trace Events 1 | . . . . . 1 . . . . Feedback Events . | . . . . . . . . . . Feedback Blocked . | . . . . . . . . . . Robot Schematics Acquired . | . . . . . . . . . . Robots Built . | . . . . . . . . . . Matter . | . . . . . . . . . . Time . | . . . . . . . . . . Total Robot Build Rating . | . . . . . . . . . . Part Schematics Acquired . | . . . . . . . . . . Parts Built . | . . . . . . . . . . Matter . | . . . . . . . . . . Time . | . . . . . . . . . . Total Part Build Rating . | . . . . . . . . . . Parts Repaired . | . . . . . . . . . . Time . | . . . . . . . . . . Parts Recycled . | . . . . . . . . . . Recycled Matter . | . . . . . . . . . . Retrieved Matter . | . . . . . . . . . . Retrieved Components . | . . . . . . . . . . Parts Scanalyzed . | . . . . . . . . . . Part Schematics Acquired . | . . . . . . . . . . Parts Damaged . | . . . . . . . . . . Bothacking | -11 -10 -10 -10 -9 -8 -8 -7 -6 -5 ------------ Run | Scr Mat Min Exi Min Mat Sto Fac Fac Fac Used RIF Installer . | . . . . . . . . . . Robots Hacked . | . . . . . . . . . . Non-combat . | . . . . . . . . . . Combat . | . . . . . . . . . . Robot Hacks Applied . | . . . . . . . . . . Relay Couplers Released . | . . . . . . . . . . Robots Rewired . | . . . . . . . . . . Allies Hacked . | . . . . . . . . . . Hacks Repelled . | . . . . . . . . . . Allies | -11 -10 -10 -10 -9 -8 -8 -7 -6 -5 -------- Run | Scr Mat Min Exi Min Mat Sto Fac Fac Fac Total Allies 1 | . . . . . . . . 1 . Largest Group 1 | . . . . . . . . 1 . Highest-Rated Group 10 | . . . . . . . . 10 . Highest-Rated Ally 10 | . . . . . . . . 10 . Total Orders . | . . . . . . . . . . Ally Attacks 19 | . . . . . . 11 . 8 . Total Damage 973 | . . . . . . 577 . 396 . Kills 12 | . . . . . . 7 . 5 . Allies Corrupted . | . . . . . . . . . . Allies Melted . | . . . . . . . . . . Turrets Deployed 2 | . . . . . . 1 . 1 . Intel | -11 -10 -10 -10 -9 -8 -8 -7 -6 -5 ------- Run | Scr Mat Min Exi Min Mat Sto Fac Fac Fac Robot Analysis Total . | . . . . . . . . . . Derelict Logs Recovered 1 | . . 1 . . . . . . . Drone Launches . | . . . . . . . . . . Drone Recoveries . | . . . . . . . . . . Exploration | -11 -10 -10 -10 -9 -8 -8 -7 -6 -5 ------------- Run | Scr Mat Min Exi Min Mat Sto Fac Fac Fac Turns Passed 980 | 16 33 109 109 11 17 161 31 230 263 Spaces Moved 1945 | 27 62 217 212 22 33 273 84 562 453 Core 1037 | 27 49 217 212 22 33 240 . 35 202 Treads . | . . . . . . . . . . Legs . | . . . . . . . . . . Wheels . | . . . . . . . . . . Hover . | . . . . . . . . . . Flight 908 | . 13 . . . . 33 84 527 251 Fastest Speed 26 | 50 40 50 50 50 50 37 37 26 26 Average Speed 42 | 50 47 50 50 50 50 48 37 36 38 Slowest Speed 50 | 50 50 50 50 50 50 50 37 50 50 Overloaded Moves . | . . . . . . . . . . Propulsion Burnouts . | . . . . . . . . . . Robots Hopped 15 | . . . . . . . . 9 6 Cave-ins Triggered . | . . . . . . . . . . Exploration Rate (%) 25 | 4 21 57 61 10 5 45 3 25 20 Regions Visited 9 Branch Regions 4 Pre-discovered Areas . | . . . . . . . . . . Known Exits Taken 1 | . . . . . . . . 1 . Unknown Exits Taken 8 | 1 1 1 1 1 1 1 1 . . Scrap Searched 1 | . . 1 . . . . . . . Spaces Dug . | . . . . . . . . . . Terrain Destroyed . | . . . . . . . . . . Melee . | . . . . . . . . . . Projectile . | . . . . . . . . . . AOE . | . . . . . . . . . . Terrain Rammed . | . . . . . . . . . . Walls Destroyed . | . . . . . . . . . . Machines Disabled . | . . . . . . . . . . Actions | -11 -10 -10 -10 -9 -8 -8 -7 -6 -5 --------- Run | Scr Mat Min Exi Min Mat Sto Fac Fac Fac Total 2067 | 29 64 216 214 21 32 300 83 574 534 Wait 108 | . . . . . . 23 . 9 76 Move 1907 | 26 61 216 211 21 32 272 83 543 442 Hop 14 | . . . . . . . . 9 5 Pick Up 7 | 3 . . 3 . . 1 . . . Fast Attach 13 | . 1 . . . . 2 . 9 1 Attach 3 | . 1 . . . . 1 . 1 . Detach 3 | . . . . . . . . 2 1 Swap . | . . . . . . . . . . Drop 2 | . . . . . . 1 . 1 . Fire . | . . . . . . . . . . Melee . | . . . . . . . . . . Ram 10 | . 1 . . . . . . . 9 Kick . | . . . . . . . . . . Crush . | . . . . . . . . . . Escape Stasis . | . . . . . . . . . . Rewire . | . . . . . . . . . . Trap . | . . . . . . . . . . Miscellaneous . | . . . . . . . . . . Route ------- -11/Scrapyard -10/Materials -10/Mines -10/Exiles -9/Mines -8/Materials -8/Storage -7/Factory -6/Factory (discovered 2 exits: *Fac / *Low) -5/Factory History --------- Turn | Location | Event 10 | -11/Scrapyard | Discovered new exit (range 14) 17 | -11/Scrapyard | Entered Materials 42 | -10/Materials | Discovered new exit (range 16) 50 | -10/Materials | Entered Mines 58 | -10/Mines | Learned 2 Materials zone layouts 62 | -10/Mines | Met a Derelict bent on vengeance 104 | -10/Mines | Found a hidden stash of uninstalled traps 156 | -10/Mines | Deemed a non-threat by the Exiles lab entrance 157 | -10/Mines | Discovered new exit (range 5) 159 | -10/Mines | Entered Exiles 173 | -10/Exiles | Met 8R-AWN 180 | -10/Exiles | Met EX-HEX 194 | -10/Exiles | Met EX-BIN 200 | -10/Exiles | Aligned with FarCom system 201 | -10/Exiles | Given EX-Vault access code 212 | -10/Exiles | Opened EX-Vault 217 | -10/Exiles | Found Deploy-a-Sentry 218 | -10/Exiles | Found Deploy-a-Sentry 220 | -10/Exiles | Found Deploy-a-Sentry 231 | -10/Exiles | Warned to stay clear of 0b10 Research branches 236 | -10/Exiles | Exiles lab attacked by MAIN.C 264 | -10/Exiles | Discovered new exit (range 10) 268 | -10/Exiles | Left Exiles lab with Deploy-a-Sentry 268 | -10/Exiles | Entered Mines 271 | -9/Mines | Discovered new exit (range 10) 278 | -9/Mines | Met a Derelict who couldn't figure out how to use a Trap Extractor 279 | -9/Mines | Entered Materials 279 | -8/Materials | Evolved 4 slots: Propulsion x2, Utility x2 291 | -8/Materials | Discovered new exit (range 10) 296 | -8/Materials | Entered Storage 318 | -8/Storage | Build established: Mutant 412 | -8/Storage | Core integrity fell below 50% 420 | -8/Storage | DAS Turret deployed 424 | -8/Storage | Discovered new exit (range 7) 444 | -8/Storage | Core integrity fell below 20% 457 | -8/Storage | Entered Factory 457 | -7/Factory | Evolved 2 slots: Power x1, Utility x1 479 | -7/Factory | Discovered new exit (range 6) 488 | -7/Factory | Entered another Factory area 488 | -6/Factory | Evolved 2 slots: Propulsion x1, Utility x1 638 | -6/Factory | Discovered new exit (range 17) 648 | -6/Factory | Identified exit to Lower Caves 661 | -6/Factory | DAS Turret deployed 711 | -6/Factory | Discovered new exit (range 11) 714 | -6/Factory | Identified exit to Factory 718 | -6/Factory | Entered another Factory area 718 | -5/Factory | Evolved 2 slots: Propulsion x1, Utility x1 916 | -5/Factory | Lost 5 parts (1p3n1u) 919 | -5/Factory | Core integrity fell below 50% 944 | -5/Factory | Core integrity fell below 20% 981 | -5/Factory | Destroyed by Tiamat Bomb Trap Last Messages --------------- F001. 00752_ O-24 Administrator locks terminal. 00752_ O-24 Administrator cleans trojans from system. 00854_ VTOL Module destroyed. 00855_ Lgt. Nuclear Core destroyed. 00857_ VTOL Module destroyed. 00868_ K-01 Serf collects debris. 00885_ Imp. Transmission Jammer destroyed. 00914_ Acquired Nuclear Pulse Array. 00927_ Nuclear Pulse Array destroyed. 00938_ S-27 Virus suffers critical hit (Burn). 00940_ Critical hit (Burn: +37). 00940_ S-27 Virus destroyed. 00958_ W-25 Informer sends out distress signal. 00962_ Slammed into T-07 Excavator. 00965_ Slammed into W-25 Informer. 00973_ Slammed into K-01 Serf. 00975_ K-01 Serf cleans the Fabricator. 00981_ Triggered Tiamat Bomb Trap. 00981_ An explosion rips through the floor. Map ----- +----------------------------------------------------+ | ?????????????????????????????????????????????????? | | ?????????????????????????????????????????????????? | | ?????????????????????????????????????????????????? | | ?????????????????????????????????????????????????? | | ?????????????????????????????????????????????????? | | ?????????????????????????????????????????????????? | | ?????????????????????????????????????????????????? | | ?????????????????????????????????????????????????? | | ?????????????????????????????????????????????????? | | ???????????????????????????????#?????????????????? | | ?????????????????????????????? #?????????????????? | | ?????????????????????????????? #?????????????????? | | ############################## ##????????????????? | | %%%% %% % +????????????????? | | ################## ######s ###????????????????? | | ?????????????????# #????#s #??????????????????? | | ?????????????????# #????# #??????????????????? | | ??????????????####+###### #????? ????????????? | | ??????????????# # #####/########?????? | | ??????????????# sw ??? | | ??????????????# # k#####????????? | | ??????????????# # """"" #????????????? | | ??????????????#########?# k"""F""k #????????????? | | ????????????????????????# """!""u #????????????? | | ????????????????????????# !!!k #????????????? | | ????????????????????????#@ #????????????? | | ????????????????????????# #????????????? | | ????????????????????????# """""" #????????????? | | ????????????????????????# k"""""" #????????????? | | ????????????????????????#u """""" #????????????? | | ????????????????????????# """""" #????????????? | | ????????????????????????# """""" #????????????? | | ???????????????????????? """""??? #????????????? | | ???????????????????????? """""?????????????????? | | ???????????????????????? """???????????????????? | | ???????????????????????? """???????????????????? | | ???????????????????????? ????????????????????? | | ???????????????????????? ????????????????????? | | ???????????????????????? ????????????????????? | | ????????????????????????#####????????????????????? | | ?????????????????????????????????????????????????? | | ?????????????????????????????????????????????????? | | ?????????????????????????????????????????????????? | | ?????????????????????????????????????????????????? | | ?????????????????????????????????????????????????? | | ?????????????????????????????????????????????????? | | ?????????????????????????????????????????????????? | | ?????????????????????????????????????????????????? | | ?????????????????????????????????????????????????? | | ?????????????????????????????????????????????????? | +----------------------------------------------------+ Best States ------------- Heat Dissipation 40 Energy Generation 23 Energy Capacity 250 Matter Stores 300 Matter Capacity 300 Sight Range 22 Terrain Scan Density 10 Evasion (%) 64 Item Schematics ----------------- None Robot Schematics ------------------ None Fabricated ------------ Nothing Alien Tech Used ----------------- None Achievements -------------- None Challenges ------------ None Game ------ Seed LayeredThrusterCapacitor Manual? 0 Play Time 00:19:07 Cumulative 93.2 hours Start 2021.07.19 @ 22:22:38 End 2021.07.19 @ 22:49:23 Sessions 1 Manual Loads 0 Difficulty Rogue Special Mode None Game No. 63 Rogue 63 Adventurer 0 Explorer 0 Win Type - Total 1 Types 1/0/0/0/0/0/0/0/0 Lore% 54 Gallery% 59 Achievement% 52 Wizard Run 0 Options --------- ASCII 1 Keyboard 1 Movement Vi Keybinds 0 Fullscreen 2 Font 18/SmallcapsGlow Map View 76x50 Tactical HUD 1 Map Filters NONE Filters NONE Steam 1 RUN: b4a8a9ad-2187-4cbe-be49-4ec5eccf6b7e